fUSD/lending_fUSD_20241020
["ID","MTS","AMOUNT","RATE_DAILY","PERIOD"]
[340529798,1729416381689,-335.0,0.00046,45]
[340529799,1729416381714,-200.0,0.00046,120]
[340529800,1729416381739,-8720.0,0.00046,120]
[340529801,1729416381764,-150.0,0.00046,30]
[340529802,1729416381789,-935.0,0.00046,120]
[340529803,1729416381814,-206.81791793,0.00046,120]
[340529804,1729416381839,-40044.16718013,0.00046,120]
[340529805,1729416381864,-1117.70961644,0.00046,120]
[340529806,1729416381888,-2125.72122138,0.00046,120]
[340529807,1729416381913,-2802.7811304,0.00046,120]
[340529808,1729416381938,-9327.43075195,0.00046,120]
[340529809,1729416381969,-150.0,0.00046034,30]
[340529810,1729416381994,-823.80573902,0.00046123,120]
[340529811,1729416382020,-265.2567247,0.00046139,30]
[340529812,1729416382045,-490.44813991,0.0004615,120]
[340529813,1729416382069,-15000.0,0.0004618,30]
[340529814,1729416382096,-150.0,0.00046206,120]
[340529815,1729416382122,-323.153,0.0004625,76]
[340529816,1729416382146,-1190.77310275,0.000463,120]
[340529817,1729416382171,-2000.0,0.00046301,120]
[340529818,1729416382196,-500.0,0.00046301,120]
[340529819,1729416382223,-150.0,0.00046304,30]
[340529820,1729416382249,-265.2567247,0.00046357,30]
[340529821,1729416382275,-240.20068,0.000464,120]
[340529822,1729416382301,-500.0,0.00046456,90]
[340529823,1729416382326,-1000.0,0.00046476,120]
[340529824,1729416382352,-637.52242274,0.000465,120]
[340529825,1729416382378,-358.73983729,0.000465,90]
[340529826,1729416382403,-245.23555263,0.000465,120]
[340529827,1729416382430,-150.0,0.00046523,120]
[340529828,1729416382458,-732.6657518,0.00046542,120]
[340529829,1729416382484,-233.0,0.0004657,30]
[340529830,1729416382512,-228.78009033,0.00046575,30]
[340529831,1729416382538,-173.31339991,0.00046575,30]
[340529832,1729416382564,-153.60647838,0.00046575,30]
[340529833,1729416382590,-249.37202733,0.00046575,30]
[340529834,1729416382619,-152.37116457,0.00046575,30]
[340529835,1729416382645,-150.46973357,0.00046575,30]
[340529836,1729416382672,-273.83686269,0.00046575,30]
[340529837,1729416382699,-150.42819249,0.00046575,30]
[340529838,1729416382724,-155.16783063,0.00046575,30]
[340529839,1729416382750,-246.9400195,0.00046575,30]
[340529840,1729416382776,-265.2567247,0.00046575,30]
[340529841,1729416382801,-380.23215852,0.000467,120]
[340529842,1729416382825,-2000.0,0.00046712,120]
[340529843,1729416382852,-530.15031622,0.00046849,120]
[340529844,1729416382877,-725.44722899,0.0004689,120]
[340529845,1729416382906,-50000.0,0.00047,37]
[340529846,1729416382935,-50000.0,0.00047,47]
[340529847,1729416382964,-50000.0,0.00047,57]
[340529848,1729416382990,-282.9431415,0.00047,60]
[340529849,1729416383014,-550.0,0.00047,120]
[340529850,1729416383039,-50000.0,0.00047,120]
[340529851,1729416383064,-150.0,0.00047,120]
[340529852,1729416383089,-150.0,0.00047,120]
[340529853,1729416383115,-30000.0,0.00047,120]
[340529854,1729416383140,-20000.0,0.00047,120]
[340529855,1729416383166,-11975.0,0.00047,120]
[340529856,1729416383191,-150.0,0.0004702,30]
[340529857,1729416383217,-150.0,0.00047094,120]
[340529858,1729416383242,-2000.0,0.00047123,120]
[340529859,1729416383268,-150.0,0.00047164,120]
[340529860,1729416383293,-1000.0,0.00047372,120]
[340529861,1729416383317,-361.99840565,0.0004748,115]
[340529862,1729416383342,-2000.0,0.00047534,120]
[340529863,1729416383368,-150.5017,0.000476,120]
[340529864,1729416383396,-473.0,0.000477,120]
[340529865,1729416383422,-150.0,0.00047817,120]
[340529866,1729416383448,-41182.41153235,0.0004788,30]
[340529867,1729416389396,-208.4119796,0.00041127,30]
[340529868,1729416389422,-208.4119796,0.00041345,30]
[340529869,1729416389448,-208.4119796,0.00041563,30]
[340529870,1729416389482,-208.4119796,0.00041781,30]
[340529871,1729416389508,-208.4119796,0.00041998,30]
[340529872,1729416389534,-208.4119796,0.00042216,30]
[340529873,1729416389560,-208.4119796,0.00042434,30]
[340529874,1729416389586,-150.0,0.00042652,30]
[340529875,1729416389611,-150.0,0.00042652,30]
[340529876,1729416389636,-150.0,0.00042652,30]
[340529877,1729416389661,-150.0,0.00042652,30]
[340529878,1729416389686,-150.0,0.00042652,30]
[340529879,1729416389712,-150.0,0.00042652,30]
[340529880,1729416389738,-150.0,0.00042652,30]
[340529881,1729416389764,-150.0,0.00042652,30]
[340529882,1729416389790,-150.0,0.00042652,30]
[340529883,1729416389816,-150.74875246,0.00042652,30]
[340529884,1729416389841,-208.4119796,0.00042652,30]
[340529885,1729416389866,-208.4119796,0.0004287,30]
[340529886,1729416389891,-208.4119796,0.00043088,30]
[340529887,1729416389916,-208.4119796,0.00043306,30]
[340529888,1729416389942,-208.4119796,0.00043524,30]
[340529889,1729416389966,-208.4119796,0.00043742,30]
[340529890,1729416389991,-208.4119796,0.0004396,30]
[340529891,1729416390017,-208.4119796,0.00044178,30]
[340529892,1729416390043,-208.4119796,0.00044396,30]
[340529893,1729416390068,-208.4119796,0.00044614,30]
[340529894,1729416390093,-208.4119796,0.00044832,30]
[340529895,1729416390119,-208.4119796,0.00045049,30]
[340529896,1729416390144,-208.4119796,0.00045267,30]
[340529897,1729416390170,-208.4119796,0.00045485,30]
[340529898,1729416390196,-208.4119796,0.00045703,30]
[340529899,1729416390221,-271.846812,0.00046,30]
[340529900,1729416390249,-537118.41686765,0.0004788,30]
[340529901,1729416390275,-500.0,0.00047945,120]
[340529902,1729416390302,-580.3313449,0.00047945,120]
[340529903,1729416390327,-232.18059937,0.00047945,90]
[340529904,1729416390354,-2000.0,0.00047945,120]
[340529905,1729416390385,-50000.0,0.00048,38]
[340529906,1729416390415,-50000.0,0.00048,48]
[340529907,1729416390445,-50000.0,0.00048,58]
[340529908,1729416390471,-150.0,0.00048,90]
[340529909,1729416390495,-50000.0,0.00048,120]
[340529910,1729416390522,-500.0,0.00048,120]
[340529911,1729416390547,-150.0,0.00048,120]
[340529912,1729416390573,-150.0,0.00048,120]
[340529913,1729416390598,-30000.0,0.00048,120]
[340529914,1729416390625,-20000.0,0.00048,120]
[340529915,1729416390650,-153.7304466,0.00048,120]
[340529916,1729416390676,-2125.72122138,0.00048,120]
[340529917,1729416390701,-2802.78113039,0.00048,120]
[340529918,1729416390727,-250.0,0.00048,30]
[340529919,1729416390752,-240.20068,0.000481,120]
[340529920,1729416390777,-150.0,0.0004818,120]
[340529921,1729416390803,-1000.0,0.00048269,120]
[340529922,1729416390827,-1514.33459194,0.00048356,120]
[340529923,1729416390852,-151.0,0.00048411,120]
[340529924,1729416390877,-751.53643102,0.00048427,60]
[340529925,1729416390902,-751.53643102,0.00048439,60]
[340529926,1729416390927,-14198.0,0.0004844,30]
[340529927,1729416390952,-200.0,0.00048452,60]
[340529928,1729416390977,-751.53643102,0.00048452,60]
[340529929,1729416391003,-751.53643102,0.00048539,60]
[340529930,1729416391028,-751.53643102,0.00048574,60]
[340529931,1729416391053,-200.0,0.00048576,60]
[340529932,1729416391077,-217.37,0.000486,120]
[340529933,1729416391106,-200.0,0.00048624,60]
[340529934,1729416391133,-200.0,0.00048637,60]
[340529935,1729416391159,-751.53643102,0.00048668,60]
[340529936,1729416391184,-200.0,0.00048679,60]
[340529937,1729416391210,-15000.0,0.0004879,30]
[340529938,1729416391237,-435.92295472,0.000488,120]
[340529939,1729416391261,-174.98392493,0.000488,120]
[340529940,1729416391287,-357.72096111,0.000489,120]
[340529941,1729416391451,-15000.0,0.0004897,30]
[340529942,1729416391481,-504.01243625,0.0004898,120]
[340529943,1729416391506,-15000.0,0.0004898,30]
[340529944,1729416391532,-1000.0,0.00048999,120]
[340529945,1729416391561,-50000.0,0.00049,39]
[340529946,1729416391591,-50000.0,0.00049,49]
[340529947,1729416391621,-50000.0,0.00049,59]
[340529948,1729416391647,-735.41907617,0.00049,30]
[340529949,1729416391674,-150.0,0.00049,120]
[340529950,1729416391700,-998.66544293,0.00049,120]
[340529951,1729416391726,-10076.27359467,0.00049,120]
[340529952,1729416391752,-3700.0,0.00049,120]
[340529953,1729416391778,-13463.81,0.00049,120]
[340529954,1729416391804,-200.0,0.00049,120]
[340529955,1729416391833,-203.90130971,0.00049041,120]
[340529956,1729416391859,-1000.0,0.00049166,120]
[340529957,1729416391884,-155.808108,0.000493,120]
[340529958,1729416391911,-806.2329882,0.00049315,120]
[340529959,1729416391936,-500.0,0.00049315,120]
[340529960,1729416391962,-500.0,0.00049315,120]
[340529961,1729416391987,-500.0,0.00049315,120]
[340529962,1729416392013,-500.0,0.00049315,120]
[340529963,1729416392038,-1434.73,0.00049315,120]
[340529964,1729416392063,-1434.73,0.00049315,120]
[340529965,1729416392089,-1434.73,0.00049315,120]
[340529966,1729416392118,-1434.73,0.00049315,120]
[340529967,1729416392142,-1434.73,0.00049315,120]
[340529968,1729416392169,-1434.73,0.00049315,120]
[340529969,1729416392197,-1434.73,0.00049315,120]
[340529970,1729416392223,-1434.73,0.00049315,120]
[340529971,1729416392248,-1434.73,0.00049315,120]
[340529972,1729416392274,-1434.73,0.00049315,120]
[340529973,1729416392298,-1434.73,0.00049315,120]
[340529974,1729416392324,-1434.73,0.00049315,120]
[340529975,1729416392348,-1434.73,0.00049315,120]
[340529976,1729416392374,-1434.73,0.00049315,120]
[340529977,1729416392402,-1434.73,0.00049315,120]
[340529978,1729416392427,-1434.73,0.00049315,120]
[340529979,1729416392453,-1434.73,0.00049315,120]
[340529980,1729416392482,-1434.73,0.00049315,120]
[340529981,1729416392508,-1434.73,0.00049315,120]
[340529982,1729416392535,-1434.73,0.00049315,120]
[340529983,1729416392560,-1434.73,0.00049315,120]
[340529984,1729416392586,-1434.73,0.00049315,120]
[340529985,1729416392611,-1434.73,0.00049315,120]
[340529986,1729416392638,-1434.94044988,0.00049315,120]
[340529987,1729416392664,-330.10094903,0.00049315,120]
[340529988,1729416392691,-1549.17,0.00049315,120]
[340529989,1729416392721,-1549.17,0.00049315,120]
[340529990,1729416392747,-1549.17,0.00049315,120]
[340529991,1729416392773,-1549.17,0.00049315,120]
[340529992,1729416392799,-1549.17,0.00049315,120]
[340529993,1729416392824,-1549.17,0.00049315,120]
[340529994,1729416392850,-1549.17,0.00049315,120]
[340529995,1729416392876,-1549.17,0.00049315,120]
[340529996,1729416392901,-1549.17,0.00049315,120]
[340529997,1729416392926,-1549.17,0.00049315,120]
[340529998,1729416392952,-1549.17,0.00049315,120]
[340529999,1729416392977,-1549.17,0.00049315,120]
[340530000,1729416393003,-1549.17,0.00049315,120]
[340530001,1729416393029,-1549.17,0.00049315,120]
[340530002,1729416393057,-1549.17,0.00049315,120]
[340530003,1729416393084,-1549.17,0.00049315,120]
[340530004,1729416393111,-1549.17,0.00049315,120]
[340530005,1729416393138,-1549.17,0.00049315,120]
[340530006,1729416393168,-1549.17,0.00049315,120]
[340530007,1729416393195,-1549.17,0.00049315,120]
[340530008,1729416393223,-1549.17,0.00049315,120]
[340530009,1729416393250,-1549.17,0.00049315,120]
[340530010,1729416393277,-1549.17,0.00049315,120]
[340530011,1729416393305,-1549.38516238,0.00049315,120]
[340530012,1729416393332,-600.0,0.00049315,31]
[340530013,1729416393386,1000.0,0.000486,120]
[340530014,1729416393418,450.0,0.000486,120]
[340530015,1729416393476,1000.0,0.00048624,60]
[340530016,1729416393511,450.0,0.00048624,60]
[340530017,1729416393559,1000.0,0.00048637,60]
[340530018,1729416393674,450.0,0.00048637,60]
[340530019,1729416393718,1000.0,0.00048668,60]
[340530020,1729416393749,450.0,0.00048668,60]
[340530021,1729416393992,450.0,0.00048679,60]
[340530022,1729416394024,1000.0,0.00048679,60]
[340530023,1729416394057,450.0,0.00048637,60]
[340530024,1729416394608,450.0,0.0004879,30]
[340530025,1729416394694,450.0,0.00048668,60]
[340530026,1729416394834,1000.0,0.00048668,60]
[340530027,1729416395203,450.0,0.000488,120]
[340530028,1729416434253,-150.0,0.0001099,2]
[340530029,1729416434273,-293.46263183,0.00010999,2]
[340530030,1729416434298,-480.69763267,0.00011,2]
[340530052,1729416637768,-1015.2725224,0.00010886,2]
[340530053,1729416638050,-1716.69474412,0.00010886,2]
[340530054,1729416638061,-500.0,0.00010973,2]
[340530055,1729416638071,-150.0,0.00010986,2]
[340530056,1729416638080,-8778.15070234,0.00010998,2]
[340530057,1729416638090,-559.22544094,0.00010998,2]
[340530058,1729416638100,-150.0,0.00010999,2]
[340530059,1729416638110,-231837.99489309,0.00011,2]
[340530090,1729416639928,-2266.32772765,0.00011,2]
[340530095,1729416642840,-2981744.83932036,0.00011,2]
[340530101,1729417445706,-150.0,0.0001077,2]
[340530102,1729417445729,-323.153,0.0001078,2]
[340530103,1729417445750,-300.0,0.000108,2]
[340530104,1729417445777,-161.33933335,0.000109,2]
[340530105,1729417445800,-214.65479573,0.000109,2]
[340530106,1729417445823,-214.23,0.00010959,2]
[340530107,1729417445846,-230.48,0.00010959,2]
[340530108,1729417445868,-500.0,0.00010973,2]
[340530109,1729417445890,-500.0,0.00010973,2]
[340530110,1729417445912,-500.0,0.00010999,2]
[340530111,1729417445934,-500.0,0.00010999,2]
[340530112,1729417445957,-430.91257085,0.00010999,2]
[340530113,1729417445982,-1735975.23030007,0.00011,2]
[340530121,1729417638159,-342.899325,0.00010845,2]
[340530122,1729417638181,-0.00293793,0.000109,2]
[340530123,1729417647094,432.31,0.00010264,2]
[340530124,1729417781156,250.0,0.0001,2]
[340530129,1729417831873,-150.0,0.0001089,2]
[340530130,1729417831883,-247.7418011,0.000109,2]
[340530131,1729417831896,-314.31200697,0.000109,2]
[340530132,1729417831905,-159.509166,0.00010973,2]
[340530133,1729417831915,-500.0,0.00010973,2]
[340530134,1729417831925,-55.2563585,0.00010973,2]
[340530135,1729417831939,-444.7436415,0.00010973,2]
[340530136,1729417831948,-500.0,0.00010999,2]
[340530137,1729417831958,-500.0,0.00010999,2]
[340530138,1729417831968,-500.0,0.00010999,2]
[340530139,1729417831977,-500.0,0.00010999,2]
[340530140,1729417831987,-500.0,0.00010999,2]
[340530141,1729417831998,-500.0,0.00010999,2]
[340530142,1729417832007,-500.0,0.00010999,2]
[340530143,1729417832017,-500.0,0.00010999,2]
[340530144,1729417832027,-500.0,0.00010999,2]
[340530145,1729417832036,-500.0,0.00010999,2]
[340530146,1729417832046,-500.0,0.00010999,2]
[340530147,1729417832055,-500.0,0.00010999,2]
[340530148,1729417832064,-500.0,0.00010999,2]
[340530149,1729417832073,-500.0,0.00010999,2]
[340530150,1729417832082,-500.0,0.00010999,2]
[340530151,1729417832092,-500.0,0.00010999,2]
[340530152,1729417832101,-500.0,0.00010999,2]
[340530153,1729417832110,-522.83427841,0.00010999,2]
[340530154,1729417832121,-500.0,0.00010999,2]
[340530155,1729417832131,-242.17208009,0.00010999,2]
[340530156,1729417832143,-257.82791991,0.00010999,2]
[340530157,1729417832152,-500.0,0.00010999,2]
[340530158,1729417832162,-365.59215969,0.00010999,2]
[340530159,1729417832172,-629.57820936,0.00010999,2]
[340530160,1729417832214,-19.84559282,0.00010999,2]
[340530161,1729417832223,-250.42384228,0.00010999,2]
[340530162,1729417832233,-3372.50690011,0.00011,2]
[340530163,1729417832244,-722.16573347,0.00011,2]
[340530164,1729417832259,-1965.56307591,0.00011,2]
[340530165,1729417832270,-8971.18423279,0.00011,2]
[340530166,1729417832282,-3416.88,0.00011,2]
[340530167,1729417832297,-8699.33293521,0.00011,2]
[340530170,1729417832316,-320.66312088,0.00011,2]
[340530189,1729417838167,-77714.26857033,0.00011,2]
[340530190,1729417838197,-179858.43917774,0.00011,2]
[340530191,1729417838207,-248792.48122162,0.00011,2]
[340530192,1729417838219,-467.6403731,0.00011,2]
[340530193,1729417838231,-13424.04920686,0.00011,2]
[340530194,1729417838388,-534822.17724259,0.00011,2]
[340530203,1729417839958,-6281.9,0.00011,2]
[340530204,1729417840074,-541.68735,0.00011,2]
[340530205,1729417840086,-135657.67005821,0.00011,2]
[340530206,1729417840194,-1129.20337353,0.00011,2]
[340530209,1729417843151,-674.22314462,0.00011,2]
[340530210,1729417843280,-1489.19626572,0.00011,2]
[340530211,1729417843309,-5538.76576466,0.00011,2]
[340530212,1729417843344,-1008.54,0.00011,2]
[340530218,1729417845894,-650096.17097255,0.00011,2]
[340530219,1729417845960,-3065.81829855,0.00011,2]
[340530237,1729418166189,410.69,9.923e-05,2]
[340530238,1729418172640,655.29,0.00025,120]
[340530240,1729418487256,2660.15,0.000125,3]
[340530241,1729418516322,-258.522,0.0001078,2]
[340530242,1729418516347,-166.663,0.0001078,2]
[340530243,1729418516371,-1391.62785382,0.000109,2]
[340530244,1729418516395,-183.71867649,0.000109,2]
[340530245,1729418516420,-1957.86764793,0.000109,2]
[340530246,1729418516446,-244.82933889,0.000109,2]
[340530247,1729418516471,-2090.76721455,0.000109,2]
[340530248,1729418516495,-200.94610074,0.000109,2]
[340530249,1729418516520,-174.8512424,0.000109,2]
[340530250,1729418516545,-158.45,0.00010959,2]
[340530251,1729418516569,-338.28501266,0.00010973,2]
[340530252,1729418516592,-611.44541806,0.00010973,2]
[340530253,1729418516615,-160.81308902,0.00010973,2]
[340530254,1729418516640,-500.0,0.00010973,2]
[340530255,1729418516664,-224.86539762,0.00010999,2]
[340530256,1729418516688,-305.54284219,0.00010999,2]
[340530257,1729418516713,-78530.80516563,0.00011,2]
[340530258,1729418691329,254.26059,0.00027,60]
[340530259,1729418700821,240.20071,0.00027,60]
[340530260,1729418710930,254.26057,0.00027,60]
[340530261,1729418737366,240.20068,0.00027,60]
[340530262,1729418764921,390.15,9.986e-05,2]
[340530267,1729419032067,-196.18470758,0.0001089,2]
[340530268,1729419032076,-1305.24509862,0.000109,2]
[340530270,1729419032086,-183.71867649,0.000109,2]
[340530272,1729419032095,-214.22567152,0.000109,2]
[340530274,1729419032104,-1393.8448097,0.000109,2]
[340530275,1729419032113,-57.18454284,0.00010959,2]
[340530276,1729419032129,-132.86545716,0.00010959,2]
[340530277,1729419032139,-136.13454334,0.00010973,2]
[340530278,1729419032184,-363.86545666,0.00010973,2]
[340530279,1729419032194,-6015.85237186,0.00011,2]
[340530280,1729419032206,-4996.46567849,0.00011,2]
[340530281,1729419032217,-7103.01487636,0.00011,2]
[340530282,1729419032228,-745.31368766,0.00011,2]
[340530283,1729419032244,-7901.97515272,0.00011,2]
[340530284,1729419032255,-266.95294903,0.00011,2]
[340530285,1729419032270,-1653.46659865,0.00011,2]
[340530286,1729419032281,-1406.11995,0.00011,2]
[340530287,1729419032413,-496.3329089,0.00011,2]
[340530288,1729419032425,-818.95666546,0.00011,2]
[340530289,1729419032436,-3347.76313662,0.00011,2]
[340530290,1729419032448,-553.24237871,0.00011,2]
[340530291,1729419032459,-818.15190406,0.00011,2]
[340530292,1729419032470,-415.09721781,0.00011,2]
[340530293,1729419032482,-308.807424,0.00011,2]
[340530315,1729419038271,-1466.63911827,0.00011,2]
[340530316,1729419038307,-10800.84669234,0.00011,2]
[340530317,1729419038319,-304.56000055,0.00011,2]
[340530318,1729419038330,-2944.34240302,0.00011,2]
[340530319,1729419038341,-9101.3781579,0.00011,2]
[340530320,1729419038353,-8693.51986952,0.00011,2]
[340530321,1729419038365,-1381.24087936,0.00011,2]
[340530322,1729419038381,-1000.0,0.00011,2]
[340530323,1729419038472,-395421.94098796,0.00011,2]
[340530324,1729419038483,-35283.02693074,0.00011,2]
[340530325,1729419038495,-864.60851812,0.00011,2]
[340530326,1729419038507,-568.25215555,0.00011,2]
[340530327,1729419038713,-553.45287518,0.00011,2]
[340530328,1729419038732,-810860.93612663,0.00011,2]
[340530329,1729419038743,-373.72250086,0.00011,2]
[340530341,1729419040555,-893.7200067,0.00011,2]
[340530343,1729419043193,-21265.68264158,0.00011,2]
[340530344,1729419043205,-423.97074858,0.00011,2]
[340530345,1729419043216,-635.12431874,0.00011,2]
[340530346,1729419043466,-12913.34336,0.00011,2]
[340530366,1729419046155,-186419.7132754,0.00011,2]
[340531215,1729419291448,398.69,0.00010006,2]
[340531462,1729419303175,500.0,0.00010406,2]
[340532712,1729419590036,250.0,0.0001,2]
[340532713,1729419902838,378.75,9.681e-05,2]
[340532715,1729420051144,-924.16546287,0.00010673,2]
[340532727,1729420232297,-150.0,0.00010664,2]
[340532729,1729420232307,-201.87791363,0.0001068,2]
[340532731,1729420232315,-206.818,0.0001078,2]
[340532734,1729420232326,-2372.05459226,0.00010781,2]
[340532748,1729420232636,-191.94540774,0.00010781,2]
[340532749,1729420232645,-250.0,0.00010837,2]
[340532750,1729420232655,-175.42510607,0.000109,2]
[340532751,1729420232664,-207.11651798,0.000109,2]
[340532752,1729420232674,-20.14893604,0.000109,2]
[340532753,1729420232686,-130.07029352,0.000109,2]
[340532754,1729420232695,-958.53174672,0.000109,2]
[340532755,1729420232704,-200.94610074,0.000109,2]
[340532756,1729420232713,-207.11651791,0.00010902,2]
[340532757,1729420232722,-207.11651791,0.00010904,2]
[340532758,1729420232731,-207.11651791,0.00010906,2]
[340532759,1729420232740,-150.0,0.00010906,2]
[340532760,1729420232750,-958.5317467,0.00010907,2]
[340532761,1729420232759,-471.6,0.00010907,2]
[340532762,1729420232768,-169.94109355,0.00010908,2]
[340532763,1729420232789,-37.17542436,0.00010908,2]
[340532764,1729420232799,-207.11651791,0.0001091,2]
[340532765,1729420232809,-17.32571174,0.00010912,2]
[340532766,1729420232821,-189.79080617,0.00010912,2]
[340532767,1729420232830,-207.11651791,0.00010914,2]
[340532768,1729420232840,-958.5317467,0.00010914,2]
[340532769,1729420232850,-181.21,0.00010959,2]
[340532770,1729420232860,-191.77,0.00010959,2]
[340532771,1729420232869,-500.0,0.00010973,2]
[340532772,1729420232879,-500.0,0.00010973,2]
[340532773,1729420232888,-500.24885129,0.00010973,2]
[340532774,1729420232897,-251.11680562,0.00010999,2]
[340532775,1729420232907,-513.1,0.00010999,2]
[340532776,1729420232915,-2479.91527231,0.00010999,2]
[340532777,1729420232943,-1450.0,0.00010999,2]
[340532778,1729420232955,-72.30472769,0.00010999,2]
[340532779,1729420232964,-150.82311812,0.00010999,2]
[340532780,1729420232974,-500.0,0.00010999,2]
[340532781,1729420232984,-182.74594676,0.00010999,2]
[340532784,1729420238456,-251.11680561,0.00010999,2]
[340532785,1729420238466,-317.25405324,0.00010999,2]
[340532786,1729420238475,-500.0,0.00010999,2]
[340532787,1729420238485,-150.40719767,0.00010999,2]
[340532788,1729420238495,-176.05001175,0.00011,2]
[340532789,1729420238505,-6600.90740173,0.00011,2]
[340532790,1729420238597,-1000.0,0.00011,2]
[340532791,1729420238609,-1042.82955653,0.00011,2]
[340532792,1729420240485,-1751.40659,0.00011,2]
[340532793,1729420240497,-80039.87520665,0.00011,2]
[340532794,1729420240572,-18088.74436536,0.00011,2]
[340532795,1729420240659,-1940.79,0.00011,2]
[340532796,1729420240673,-19830.36041718,0.00011,2]
[340532812,1729420243370,-5751.89785844,0.00011,2]
[340532813,1729420243400,-2053.95342498,0.00011,2]
[340532814,1729420243418,-500.0,0.00011,2]
[340532815,1729420243500,-27369.49559597,0.00011,2]
[340532816,1729420243511,-83347.50280246,0.00011,2]
[340532817,1729420243524,-759.4936,0.00011,2]
[340532818,1729420243535,-1904.98,0.00011,2]
[340532819,1729420243547,-279.92356222,0.00011,2]
[340532820,1729420243598,-4077.49325047,0.00011,2]
[340532821,1729420243613,-716.4,0.00011,2]
[340532822,1729420243625,-480.7630145,0.00011,2]
[340532823,1729420243637,-10189.34831117,0.00011,2]
[340532824,1729420246434,-1263.30000001,0.00011,2]
[340532825,1729420247496,-1274245.14106651,0.00011,2]
[340532826,1729420247507,-8369049.21816535,0.00011,2]
[340532827,1729420247517,-499.99,0.00011,2]
[340532828,1729420247526,-4348650.956584,0.00011,2]
[340532829,1729420247536,-4092.83369214,0.00011,2]
[340532830,1729420247546,-4007.0,0.00011014,2]
[340532831,1729420247556,-3786.8615748,0.00011054,2]
[340532832,1729420247565,-212.72831032,0.00011092,2]
[340532833,1729420247575,-410.51703335,0.00011457,2]
[340532834,1729420247585,-23890.0,0.00011499,2]
[340532835,1729420247598,-174.14,0.0001165,2]
[340532836,1729420247608,-250.0,0.00011687,2]
[340532837,1729420247618,-1000.0,0.0001184,2]
[340532838,1729420247628,-378.75,0.00011945,2]
[340532839,1729420247639,-300.0,0.00012,2]
[340532840,1729420247649,-250.0,0.00012018,2]
[340532841,1729420247659,-163.69,0.00012164,2]
[340532842,1729420247669,-249.952,0.00012314,2]
[340532843,1729420247679,-249.952,0.00012319,2]
[340532844,1729420247689,-249.952,0.00012324,2]
[340532845,1729420247699,-249.952,0.00012329,2]
[340532846,1729420247709,-249.952,0.00012334,2]
[340532847,1729420247719,-249.952,0.00012339,2]
[340532848,1729420247729,-1000.0,0.00012342,2]
[340532849,1729420247738,-249.952,0.00012344,2]
[340532850,1729420247748,-249.952,0.00012349,2]
[340532851,1729420247757,-249.952,0.00012354,2]
[340532852,1729420247767,-249.952,0.00012359,2]
[340532853,1729420247776,-167.0,0.00012484,2]
[340532854,1729420247786,-167.0,0.00012502,2]
[340532855,1729420247796,-167.02,0.00012519,2]
[340532856,1729420247805,-194.75,0.00012544,2]
[340532857,1729420247815,-3205.08343945,0.00012579,2]
[340532858,1729420247825,-24564.81720522,0.0001289,2]
[340532859,1729420247834,-42031.26540606,0.00012899,2]
[340532860,1729420247844,-16107.41007964,0.000129,2]
[340532861,1729420247854,-2998.49061,0.00013,2]
[340532862,1729420247863,-1000.0,0.0001332,2]
[340532863,1729420247873,-167.0,0.00013514,2]
[340532864,1729420247882,-167.0,0.00013534,2]
[340532865,1729420247891,-214.04398655,0.00013698,2]
[340532866,1729420247901,-500.0,0.00013699,2]
[340532867,1729420247911,-500.0,0.00013699,2]
[340532868,1729420247920,-500.0,0.00013699,2]
[340532869,1729420247930,-500.0,0.00013699,2]